fUSD/lending_fUSD_20260131
["ID","MTS","AMOUNT","RATE_DAILY","PERIOD"]
[404175618,1769899480008,-166.01067044,0.00044404,120]
[404175619,1769899480069,-150.0,0.00044427,30]
[404175620,1769899480129,-150.0,0.00044427,30]
[404175621,1769899480189,-150.0,0.00044472,30]
[404175622,1769899480247,-150.0,0.00044476,120]
[404175623,1769899480305,-150.0,0.000445,30]
[404175624,1769899480363,-152.0,0.000445,120]
[404175625,1769899480421,-253.0,0.000445,47]
[404175626,1769899480480,-4387.0,0.00044507,30]
[404175627,1769899480542,-613.97,0.00044526,30]
[404175628,1769899480607,-150.0,0.0004454,30]
[404175629,1769899480672,-150.0,0.0004454,30]
[404175630,1769899480736,-150.0,0.00044571,30]
[404175631,1769899480801,-150.0,0.0004458,30]
[404175632,1769899480867,-287.02430205,0.0004458,30]
[404175633,1769899480932,-150.0,0.00044594,30]
[404175634,1769899480995,-150.0,0.00044608,30]
[404175635,1769899481057,-150.0,0.00044671,30]
[404175636,1769899481121,-150.0,0.00044744,30]
[404175637,1769899481179,-150.0,0.00044744,30]
[404175638,1769899481242,-150.0,0.00044844,30]
[404175639,1769899481303,-150.0,0.0004488,30]
[404175640,1769899481359,-150.0,0.0004488,30]
[404175641,1769899481417,-150.0,0.0004488,30]
[404175642,1769899481477,-450.51287823,0.0004489,120]
[404175643,1769899481539,-152.0,0.000449,120]
[404175644,1769899481601,-1000.0,0.00044931,120]
[404175645,1769899481660,-4387.0,0.00044943,30]
[404175646,1769899481722,-210.0,0.0004496,30]
[404175647,1769899481787,-182.5614829,0.00045,120]
[404175648,1769899481852,-159.9,0.00045,85]
[404175649,1769899481920,-7136.46,0.00045,30]
[404175650,1769899481981,-164.61352229,0.00045,60]
[404175651,1769899482047,-300.0,0.00045,120]
[404175652,1769899482109,-249.44537459,0.00045,120]
[404175653,1769899482172,-255.71043415,0.00045,120]
[404175654,1769899482232,-199.999999,0.00045,120]
[404175655,1769899482293,-268.19599587,0.00045,30]
[404175656,1769899482357,-150.0,0.00045004,30]
[404175657,1769899482422,-150.0,0.00045016,30]
[404175658,1769899482485,-150.0,0.00045037,30]
[404175659,1769899482548,-150.0,0.00045095,30]
[404175660,1769899482611,-400.86811739,0.000451,120]
[404175661,1769899482672,-150.0,0.00045152,30]
[404175662,1769899482741,-200.0,0.000452,120]
[404175663,1769899482804,-150.0,0.00045202,120]
[404175664,1769899482868,-150.0,0.0004522,30]
[404175665,1769899482927,-150.0,0.0004522,30]
[404175666,1769899482997,-150.0,0.0004522,30]
[404175667,1769899483058,-510.7304141,0.00045228,30]
[404175668,1769899483120,-150.0,0.00045254,120]
[404175669,1769899483178,-150.0,0.00045288,30]
[404175670,1769899483237,-150.0,0.00045294,120]
[404175671,1769899483297,-152.0,0.000453,120]
[404175672,1769899483356,-150.0,0.00045345,30]
[404175673,1769899483416,-150.0,0.00045403,30]
[404175674,1769899483481,-150.0,0.00045424,30]
[404175675,1769899483546,-150.0,0.00045436,30]
[404175676,1769899483610,-150.0,0.00045483,90]
[404175677,1769899483676,-150.0,0.00045493,30]
[404175678,1769899483741,-257.89472998,0.00045493,30]
[404175679,1769899483805,-176.9126022,0.000455,120]
[404175680,1769899483869,-466.27965994,0.000455,120]
[404175681,1769899483934,-201.25033978,0.000455,120]
[404175682,1769899484002,-180.35339017,0.000455,120]
[404175683,1769899484065,-173.47576183,0.000455,120]
[404175684,1769899484127,-156.9,0.000455,31]
[404175685,1769899484189,-253.0,0.000455,50]
[404175686,1769899484253,-150.0,0.0004556,30]
[404175687,1769899484317,-150.0,0.0004556,30]
[404175688,1769899484377,-150.0,0.0004556,30]
[404175689,1769899484439,-150.0,0.00045596,30]
[404175690,1769899484504,-152.0,0.000456,120]
[404175691,1769899484573,-202.53,0.00045616,120]
[404175692,1769899484638,-5201.55841,0.00045696,30]
[404175693,1769899484704,-150.0,0.00045696,30]
[404175694,1769899484779,-150.0,0.00045696,30]
[404175695,1769899484846,-274.64175374,0.000457,120]
[404175696,1769899484920,-175.46,0.000457,60]
[404175697,1769899484997,-1000.0,0.00045753,120]
[404175698,1769899485060,-150.0,0.00045769,30]
[404175699,1769899485135,-150.0,0.00045832,30]
[404175700,1769899485199,-150.0,0.00045846,30]
[404175701,1769899485261,-150.0,0.00045869,30]
[404175702,1769899485323,-150.0,0.000459,30]
[404175703,1769899485384,-150.0,0.000459,30]
[404175704,1769899485445,-500.0,0.00045956,60]
[404175705,1769899485506,-500.0,0.00045956,60]
[404175706,1769899485569,-500.0,0.00045956,60]
[404175707,1769899485634,-150.0,0.00045968,30]
[404175708,1769899485696,-2500.0,0.00046,30]
[404175709,1769899485764,-205.1123137,0.00046,30]
[404175710,1769899485839,-172.60211954,0.00046,120]
[404175711,1769899485906,-152.0,0.00046,120]
[404175712,1769899485968,-317.5170254,0.00046,120]
[404175713,1769899486034,-150.0,0.00046013,30]
[404175714,1769899486100,-150.0,0.00046013,30]
[404175715,1769899486170,-150.0,0.00046097,30]
[404175716,1769899486238,-150.0,0.00046104,30]
[404175717,1769899486304,-150.0,0.00046135,30]
[404175718,1769899486370,-150.0,0.00046172,30]
[404175719,1769899486436,-150.0,0.00046176,120]
[404175720,1769899486498,-152.0,0.000462,120]
[404175721,1769899486566,-150.0,0.0004624,30]
[404175722,1769899486631,-150.0,0.0004624,30]
[404175723,1769899486696,-150.0,0.0004624,30]
[404175724,1769899486761,-150.0,0.00046302,30]
[404175725,1769899486828,-150.0,0.00046347,30]
[404175726,1769899486896,-150.0,0.00046376,30]
[404175727,1769899486963,-169.29514494,0.0004649,120]
[404175728,1769899487030,-253.0,0.000465,54]
[404175729,1769899487101,-150.0,0.00046502,30]
[404175730,1769899487168,-500.0,0.00046504,60]
[404175731,1769899487236,-150.0,0.00046512,30]
[404175732,1769899487304,-1000.0,0.00046575,120]
[404175733,1769899487372,-150.0,0.0004658,30]
[404175734,1769899487441,-150.0,0.0004658,30]
[404175735,1769899487517,-150.0,0.00046598,30]
[404175736,1769899487587,-150.0,0.00046648,30]
[404175737,1769899487655,-150.0,0.00046648,30]
[404175738,1769899487720,-200.0,0.000467,120]
[404175739,1769899487784,-150.0,0.0004673,120]
[404175740,1769899487850,-150.0,0.00046735,30]
[404175741,1769899487918,-731.32,0.00046737,120]
[404175742,1769899487984,-150.0,0.00046784,30]
[404175743,1769899488048,-155.0,0.00046797,120]
[404175744,1769899488109,-2140.66371466,0.000468,120]
[404175745,1769899488171,-152.0,0.000468,120]
[404175746,1769899488234,-152.0,0.000468,120]
[404175747,1769899488298,-500.0,0.000468,60]
[404175748,1769899488359,-514.63,0.000468,120]
[404175749,1769899488421,-150.0,0.00046848,30]
[404175750,1769899488482,-150.0,0.00046868,30]
[404175751,1769899488549,-150.0,0.00046877,120]
[404175752,1769899488613,-168.52682858,0.00046887,30]
[404175753,1769899488678,-199.42884418,0.0004689,30]
[404175754,1769899488742,-466.27965994,0.000469,120]
[404175755,1769899488807,-180.35339017,0.000469,120]
[404175756,1769899488873,-173.47576183,0.000469,120]
[404175757,1769899488938,-150.0,0.0004692,30]
[404175758,1769899489473,-150.0,0.0004692,30]
[404175759,1769899489538,-150.0,0.0004692,30]
[404175760,1769899489601,-210.0,0.0004698,30]
[404175761,1769899489664,-1129.8030965,0.00047,90]
[404175762,1769899489728,-166.69758793,0.00047,120]
[404175763,1769899489792,-500.0,0.00047052,60]
[404175764,1769899489853,-500.0,0.00047052,60]
[404175765,1769899489913,-500.0,0.00047052,60]
[404175766,1769899489973,-150.0,0.00047056,30]
[404175767,1769899490039,-150.0,0.00047099,30]
[404175768,1769899490099,-150.0,0.00047124,30]
[404175769,1769899490160,-150.0,0.00047167,30]
[404175770,1769899490220,-150.0,0.00047192,30]
[404175771,1769899490279,-150.0,0.00047234,30]
[404175772,1769899490340,-150.0,0.00047255,90]
[404175773,1769899490401,-150.0,0.0004726,30]
[404175774,1769899490468,-150.0,0.0004726,30]
[404175775,1769899490531,-150.0,0.00047328,30]
[404175776,1769899490602,-150.0,0.00047349,30]
[404175777,1769899490666,-1000.0,0.00047397,120]
[404175778,1769899490730,-152.0,0.000474,120]
[404175779,1769899490795,-1742.49363078,0.00047414,70]
[404175780,1769899490862,-150.0,0.00047464,30]
[404175781,1769899490931,-253.0,0.000475,58]
[404175782,1769899491002,-500.0,0.000476,60]
[404175783,1769899491066,-152.0,0.000476,120]
[404175784,1769899491128,-274.37624853,0.000476,30]
[404175785,1769899491193,-273.96844827,0.000476,30]
[404175786,1769899491257,-171.01132194,0.000476,30]
[404175787,1769899491316,-151.60257716,0.000476,30]
[404175788,1769899491374,-285.12135095,0.000476,30]
[404175789,1769899491435,-184.22341897,0.000476,30]
[404175790,1769899491506,-242.41474719,0.000476,30]
[404175791,1769899491572,-254.03152414,0.000476,30]
[404175792,1769899491634,-190.27137735,0.000476,30]
[404175793,1769899491695,-182.25851637,0.000476,30]
[404175794,1769899491757,-191.56315351,0.000476,30]
[404175795,1769899491818,-214.10541607,0.000476,30]
[404175796,1769899491875,-83533.0933036,0.000478,60]
[404175797,1769899491931,-200000.0,0.000478,30]
[404175798,1769899491989,-500.0,0.000478,60]
[404175799,1769899492046,-500.0,0.000478,60]
[404175800,1769899492109,-500.0,0.000478,60]
[404175801,1769899492170,-500.0,0.000478,60]
[404175802,1769899492230,-500.0,0.000478,60]
[404175803,1769899492287,-500.0,0.000478,60]
[404175804,1769899492347,-500.0,0.000478,60]
[404175805,1769899492405,-299.85192223,0.000478,60]
[404175806,1769899492464,-651.27975624,0.000478,30]
[404175807,1769899492525,-150.0916177,0.00047884,116]
[404175808,1769899492588,-14972.0,0.00047913,120]
[404175809,1769899492648,-500.0,0.00048,120]
[404175810,1769899492707,-1106.34347416,0.00048,120]
[404175811,1769899492767,-220.55185437,0.00048,120]
[404175812,1769899492829,-500.0,0.00048,120]
[404175813,1769899492886,-150.0,0.00048,120]
[404175814,1769899492943,-29404.95375379,0.00048,120]
[404175815,1769899493001,-237.0,0.00048,120]
[404175816,1769899493060,-2175.45727786,0.00048,120]
[404175817,1769899493119,-152.0,0.00048,120]
[404175818,1769899493189,-276.92738977,0.000481,120]
[404175819,1769899493249,-300.0,0.00048111,30]
[404175820,1769899493309,-500.0,0.00048148,60]
[404175821,1769899493374,-500.0,0.00048148,60]
[404175822,1769899493439,-500.0,0.00048148,60]
[404175823,1769899493501,-150.0,0.00048164,120]
[404175824,1769899493564,-1000.0,0.00048219,120]
[404175825,1769899493627,-466.27965994,0.000483,120]
[404175826,1769899493691,-152.0,0.000483,120]
[404175827,1769899493757,-150.0,0.00048313,120]
[404175828,1769899493820,-303.10304467,0.00048316,30]
[404175829,1769899493883,-1500.0,0.00048484,60]
[404175830,1769899493946,-133363.19357442,0.000485,30]
[404175831,1769899494010,-253.0,0.000485,61]
[404175832,1769899494074,-152.0,0.000486,120]
[404175833,1769899494137,-500.0,0.00048696,60]
[404175834,1769899494197,-500.0,0.00048767,120]
[404175835,1769899494257,-500.0,0.00048767,120]
[404175836,1769899494316,-500.0,0.00048767,120]
[404175837,1769899494378,-500.0,0.00048767,120]
[404175838,1769899494440,-500.0,0.00048767,120]
[404175839,1769899494501,-500.0,0.00048767,120]
[404175840,1769899494564,-500.0,0.00048767,120]
[404175841,1769899494630,-500.0,0.00048767,120]
[404175842,1769899494692,-500.0,0.00048767,120]
[404175843,1769899494756,-416.85732247,0.00048767,120]
[404175844,1769899494819,-239.2391768,0.00048778,120]
[404175846,1769899494883,-211.39592417,0.00048778,120]
[404175847,1769899494944,-200000.0,0.000488,65]
[404175848,1769899495005,-200000.0,0.000488,70]
[404175849,1769899495068,-200000.0,0.000488,75]
[404175850,1769899495130,-233.65,0.000488,120]
[404175851,1769899495405,-625.50887983,0.000488,120]
[404175852,1769899495469,-457.0,0.0004886,120]
[404175853,1769899495534,-3735.75771381,0.00048875,60]
[404175854,1769899495601,-1421.83356743,0.00048875,60]
[404175855,1769899495668,-398.44320997,0.0004888,120]
[404175856,1769899495732,-582.07183025,0.0004888,120]
[404175857,1769899495800,-3286.99396214,0.00048888,120]
[404175858,1769899495866,-2114.86895499,0.000489,120]
[404175859,1769899495931,-1000.0,0.000489,120]
[404175860,1769899495996,-210.0,0.0004899,30]
[404175861,1769899496059,-212.0,0.0004899,30]
[404175862,1769899496123,-211.0,0.0004899,30]
[404175863,1769899496189,-246.24552791,0.00049,120]
[404175864,1769899496255,-500.0,0.00049,120]
[404175865,1769899496312,-257.62418887,0.00049,120]
[404175866,1769899496374,-194.88816864,0.00049,120]
[404175867,1769899496437,-1009.42804069,0.00049,120]
[404175868,1769899496503,-244.5905389,0.00049,120]
[404175869,1769899496570,-1574.13179616,0.00049,120]
[404175870,1769899496635,-224.59748184,0.00049,90]
[404175871,1769899496700,-205.13961574,0.00049,120]
[404175872,1769899496764,-150.0,0.00049,120]
[404175873,1769899496826,-154.72306106,0.00049,120]
[404175874,1769899496889,-2020.61612774,0.00049,120]
[404175875,1769899496953,-278.16605021,0.00049,120]
[404175876,1769899497016,-150.0,0.00049,120]
[404175877,1769899497081,-1000.0,0.00049041,120]
[404175878,1769899497143,-152.0,0.000491,120]
[404175879,1769899497209,-212.39695794,0.00049142,120]
[404175880,1769899497271,-17101.0,0.00049173,120]
[404175881,1769899497337,-9999.0,0.000492,120]
[404175882,1769899497400,-152.0,0.000492,120]
[404175883,1769899497462,-500.0,0.00049244,60]
[404175884,1769899497526,-500.0,0.00049244,60]
[404175885,1769899497589,-500.0,0.00049244,60]
[404175886,1769899497652,-240.23806118,0.00049273,120]
[404175887,1769899497716,-500.0,0.00049315,120]
[404175888,1769899497785,-500.0,0.00049315,120]
[404175889,1769899497850,-500.0,0.00049315,120]
[404175890,1769899497913,-224.94028363,0.00049351,120]
[404175891,1769899497975,-5125.25,0.00049396,120]
[404175892,1769899498036,-256.20365452,0.000495,120]
[404175893,1769899498097,-10000.0,0.000495,120]
[404175894,1769899498157,-1292.56385699,0.000495,120]
[404175895,1769899498216,-276.92738977,0.000495,120]
[404175896,1769899498277,-8243.08117766,0.000495,120]
[404175897,1769899498337,-253.0,0.000495,65]
[404175898,1769899498399,-514.63,0.0004952,120]
[404175899,1769899498461,-150.0,0.00049583,120]
[404175900,1769899498523,-2325.5558834,0.000496,120]
[404175901,1769899498585,-150.0,0.00049618,120]
[404175902,1769899498650,-905.58821973,0.00049799,120]
[404175903,1769899498721,-1347.0,0.000498,120]
[404175904,1769899498784,-650.48879954,0.000498,120]
[404175905,1769899498846,-200000.0,0.000498,80]
[404175906,1769899498908,-200000.0,0.000498,85]
[404175907,1769899498969,-200000.0,0.000498,90]
[404175908,1769899499032,-300000.0,0.000498,45]
[404175909,1769899499095,-2679.11736986,0.000498,120]
[404175910,1769899499158,-152.0,0.000498,120]
[404175911,1769899499222,-1000.0,0.00049863,120]
[404175912,1769899499284,-200000.0,0.0004988,60]
[404175913,1769899499348,-200000.0,0.0004988,70]
[404175914,1769899499412,-259.99620677,0.000499,30]
[404175915,1769899499477,-960.46946721,0.000499,30]
[404175916,1769899499547,-69201.07,0.000499,120]
[404175917,1769899499615,-152.0,0.000499,120]
[404175918,1769899499682,-3106.14882645,0.0004999,120]
[404175919,1769899499747,-877.67966387,0.0004999,120]
[404175920,1769899499811,-877.60302935,0.0004999,120]
[404175921,1769899499876,-1206.70418,0.0004999,120]
[404175922,1769899499943,-150.0,0.0005,40]
[404175923,1769899500006,-500.0,0.0005,120]
[404175924,1769899500073,-520.0,0.0005,30]
[404175925,1769899500138,-1000.0,0.0005,120]
[404175926,1769899500205,-716.2822772,0.0005,120]
[404175927,1769899500273,-200.0,0.0005,120]
[404175928,1769899500341,-200.0,0.0005,120]
[404175929,1769899500408,-354.67418582,0.0005,120]
[404175930,1769899500475,-172.99714403,0.0005,120]
[404175931,1769899500544,-932.12346479,0.0005,120]
[404175932,1769899500614,-1149.80814078,0.0005,30]
[404175933,1769899500683,-1050.17985339,0.0005,120]
[404175934,1769899500748,-179.31339545,0.0005,120]
[404175935,1769899500813,-868.34521011,0.0005,30]
[404175936,1769899500877,-191.41876166,0.0005,120]
[404175937,1769899500941,-200.0,0.0005,120]
[404175938,1769899501004,-1450.3956046,0.0005,120]
[404175939,1769899501075,-225.86573828,0.0005,120]
[404175940,1769899501145,-500.0,0.0005,30]
[404175941,1769899501210,-578.74764162,0.0005,120]
[404175942,1769899501284,-199.3055284,0.0005,120]
[404175943,1769899501347,-200.0,0.0005,120]
[404175944,1769899501412,-922.68862024,0.0005,30]
[404175945,1769899501474,-313.11927679,0.0005,120]
[404175946,1769899501540,-160.59975413,0.0005,120]
[404175947,1769899501764,-250.0,0.0005,120]
[404175948,1769899501837,-600.0,0.0005,120]
[404175949,1769899501907,-500.0,0.0005,120]
[404175950,1769899501973,-150.0,0.0005,120]
[404175951,1769899502040,-100000.0,0.0005,32]
[404175952,1769899502105,-325.64,0.0005,120]
[404175954,1769899502178,-8605.57772854,0.0005,120]
[404175955,1769899502259,-158.1166851,0.0005,120]
[404175957,1769899502330,-4691.62325035,0.0005,30]
[404175958,1769899502398,-3688.861611,0.0005,120]
[404175959,1769899502465,-31320.0,0.0005,120]
[404175960,1769899502531,-262.67925627,0.0005,120]
[404175961,1769899502598,-8200.0,0.0005,30]
[404175962,1769899502663,-10880.48810782,0.0005,120]
[404175963,1769899502727,-516.71,0.0005,120]
[404175964,1769899502792,-516.92,0.0005,120]
[404175965,1769899502857,-530.84,0.0005,120]
[404175966,1769899502921,-265.42,0.0005,120]
[404175967,1769899502986,-5942.61465926,0.0005,30]
[404175968,1769899503065,-223.59,0.0005,120]
[404175969,1769899503138,-530.89,0.0005,120]
[404175970,1769899503205,-23254.1,0.0005,120]
[404175971,1769899503274,-250.68,0.0005,120]
[404175972,1769899503345,-200.2317162,0.0005,120]
[404175973,1769899503414,-7139.33,0.0005,30]
[404175974,1769899503484,-1248.64225153,0.0005,30]
[404175975,1769899503554,-150.0,0.00050028,120]
[404175976,1769899503624,-10001.0,0.000502,120]
[404175977,1769899503691,-829.0,0.000502,120]
[404175978,1769899503767,-500.0,0.0005034,60]
[404175979,1769899503838,-500.0,0.0005034,60]
[404175980,1769899503909,-500.0,0.0005034,60]
[404175981,1769899503980,-5300.0,0.000505,120]
[404175982,1769899504049,-10000.0,0.000505,120]
[404175983,1769899504126,-10000.0,0.000505,120]
[404175984,1769899504197,-10000.0,0.000505,120]
[404175985,1769899504268,-386.59019083,0.000505,60]
[404175986,1769899504338,-173.29,0.000505,120]
[404175987,1769899504405,-436.28549543,0.000505,60]
[404175988,1769899504474,-100000.0,0.000505,33]
[404175989,1769899504547,-152.0,0.000505,120]
[404175990,1769899504615,-253.0,0.000505,69]
[404175991,1769899504686,-200000.0,0.0005058,90]
[404175992,1769899504758,-200000.0,0.0005058,80]
[404175993,1769899504828,-812.82326512,0.000506,120]
[404175994,1769899504899,-152.0,0.000506,120]
[404175995,1769899504968,-518.22858978,0.00050684,120]
[404175996,1769899505038,-17103.0,0.00050719,120]
[404175997,1769899505109,-2110.86,0.000508,120]
[404175998,1769899505178,-747.133316,0.000508,120]
[404175999,1769899505247,-200000.0,0.000508,95]
[404176000,1769899505321,-200000.0,0.000508,100]
[404176001,1769899505390,-200000.0,0.000508,105]
[404176002,1769899505460,-20000.0,0.000509,120]
[404176003,1769899505533,-1759.72336503,0.0005097,82]
[404176004,1769899505605,-25000.0,0.00051,120]
[404176005,1769899505677,-150.0,0.00051,120]
[404176006,1769899505746,-30339.0,0.00051,110]
[404176007,1769899505815,-150.0,0.00051,40]
[404176008,1769899505886,-171.99279069,0.00051,120]
[404176009,1769899505950,-1000.0,0.00051,60]
[404176010,1769899506018,-1000.0,0.00051,120]
[404176011,1769899506086,-51600.0,0.00051,33]
[404176012,1769899506154,-120897.23640303,0.00051,120]
[404176013,1769899506224,-1000.0,0.00051,120]
[404176014,1769899506291,-4350.91455571,0.00051,120]
[404176015,1769899506363,-192.0,0.00051,120]
[404176016,1769899506431,-192.0,0.00051,120]
[404176017,1769899506499,-395.53702228,0.0005109,120]
[404176018,1769899506570,-152.0,0.000511,120]
[404176019,1769899506641,-25000.0,0.0005116,120]
[404176020,1769899506710,-10000.0,0.000512,120]
[404176021,1769899506772,-10000.0,0.000512,120]
[404176022,1769899506839,-10000.0,0.000512,120]
[404176023,1769899506908,-10000.0,0.000512,120]
[404176024,1769899506977,-1437.0,0.000512,120]
[404176025,1769899507043,-231.52242072,0.00051234,120]
[404176026,1769899507109,-152.0,0.000513,120]
[404176027,1769899507179,-300.0,0.000514,120]
[404176028,1769899507247,-500.0,0.00051436,60]
[404176029,1769899507315,-537.59468147,0.00051436,60]
[404176030,1769899507387,-500.0,0.00051436,60]
[404176031,1769899507457,-150.46334125,0.00051495,120]
[404176032,1769899507529,-10000.0,0.000515,120]
[404176033,1769899507605,-217230.74178421,0.000515,120]
[404176034,1769899507679,-591266.03961333,0.000515,120]
[404176046,1769899692430,150.0,0.00043502,30]
[404176085,1769899764722,283.90887576,0.00043502,30]
[404176130,1769899831544,-163.26,0.00015366,2]
[404176131,1769899831554,-600.0,0.00015366,2]
[404176132,1769899831564,-300.0,0.00015366,2]
[404176133,1769899831574,-278.0,0.00015366,2]
[404176134,1769899831584,-250.0,0.00015377,2]
[404176135,1769899831594,-300.0,0.00015475,2]
[404176136,1769899831603,-150.06344935,0.00015549,2]
[404176137,1769899831613,-3955.26,0.00015718,2]
[404176138,1769899831622,-151.0,0.00015838,2]
[404176139,1769899831632,-1200.0,0.00015866,2]
[404176140,1769899831642,-1774.68436776,0.00015867,2]
[404176327,1769899837731,-500.0,0.00015867,2]
[404176328,1769899837792,-9238.28604153,0.00015867,2]
[404176329,1769899837801,-5154.15250197,0.00015867,2]
[404176330,1769899837811,-583.24130235,0.00015867,2]
[404176331,1769899837820,-500.0,0.00015867,2]
[404176332,1769899837829,-500.0,0.00015867,2]
[404176333,1769899837838,-505.5325855,0.00015867,2]
[404176334,1769899837848,-500.0,0.00015867,2]
[404176335,1769899837858,-500.0,0.00015867,2]
[404176336,1769899837867,-500.0,0.00015867,2]
[404176337,1769899837878,-206.12550311,0.00015867,2]
[404176338,1769899837887,-500.0,0.00015867,2]
[404176339,1769899837896,-500.0,0.00015867,2]
[404176340,1769899837905,-438.50728317,0.00015867,2]
[404176341,1769899837914,-500.0,0.00015867,2]
[404176342,1769899837923,-500.0,0.00015867,2]
[404176343,1769899837932,-500.0,0.00015867,2]
[404176344,1769899837941,-500.0,0.00015867,2]
[404176345,1769899837950,-500.0,0.00015867,2]
[404176347,1769899837959,-500.0,0.00015867,2]
[404176349,1769899837969,-500.0,0.00015867,2]
[404176351,1769899837978,-500.0,0.00015867,2]
[404176353,1769899837987,-500.0,0.00015867,2]
[404176355,1769899837996,-500.0,0.00015867,2]
[404176357,1769899838006,-500.0,0.00015867,2]
[404176359,1769899838015,-500.0,0.00015867,2]
[404176361,1769899838025,-345.83506728,0.00015867,2]
[404176363,1769899838034,-500.0,0.00015867,2]
[404176365,1769899838043,-500.0,0.00015867,2]
[404176367,1769899838052,-500.0,0.00015867,2]
[404176369,1769899838061,-500.0,0.00015867,2]
[404176371,1769899838070,-500.0,0.00015867,2]
[404176373,1769899838081,-500.0,0.00015867,2]
[404176376,1769899838090,-500.0,0.00015867,2]
[404176377,1769899838099,-500.0,0.00015867,2]
[404176380,1769899838109,-500.0,0.00015867,2]
[404176382,1769899838122,-500.0,0.00015867,2]
[404176384,1769899838132,-500.0,0.00015867,2]
[404176386,1769899838141,-172.96673742,0.00015867,2]
[404176388,1769899838159,-327.03326258,0.00015867,2]
[404176390,1769899838168,-446.80331295,0.00015867,2]
[404176517,1769899839696,-53.19668705,0.00015867,2]
[404176518,1769899839706,-423.43580641,0.00015867,2]
[404176519,1769899839719,-76.56419359,0.00015867,2]
[404176520,1769899839729,-199.10188641,0.00015867,2]
[404176521,1769899839739,-300.89811359,0.00015867,2]
[404176522,1769899839749,-500.0,0.00015867,2]
[404176523,1769899839758,-500.0,0.00015867,2]
[404176524,1769899839768,-500.0,0.00015867,2]
[404176525,1769899839777,-500.0,0.00015867,2]
[404176526,1769899839786,-500.0,0.00015867,2]
[404176527,1769899839795,-500.0,0.00015867,2]
[404176528,1769899839804,-500.0,0.00015867,2]
[404176529,1769899839813,-500.0,0.00015867,2]
[404176530,1769899839823,-500.0,0.00015867,2]
[404176531,1769899839832,-408714.41726364,0.00015868,2]
[404176532,1769899839882,-124709.8015375,0.00015868,2]
[404176540,1769899843574,-1000.0,0.00015868,2]
[404176542,1769899845758,-1800.0,0.00015868,2]
[404176543,1769899845872,-6147.59389947,0.00015868,2]
[404176544,1769899845990,-392.57999984,0.00015868,2]
[404176550,1769899872229,150.0,0.00043518,30]
[404176554,1769899879824,551.0,0.00043518,30]
[404176572,1769899889461,510.5,0.00043518,30]
[404176599,1769899952668,485.82,0.00043518,30]
[404176600,1769899968263,576.62590404,0.00043518,120]
[404176601,1769899977148,256.0909652,0.00043518,120]
[404176602,1769900006415,247.0,0.00043518,88]
[404176603,1769900017216,239.32,0.00043518,88]
[404176604,1769900023557,221.65,0.00043518,88]
[404176605,1769900030339,298.5,0.00043518,88]
[404176608,1769900093979,2658.0,0.00043518,120]
[404176609,1769900108027,150.0,0.00043506,30]